fUSD/lending_fUSD_20260611
["ID","MTS","AMOUNT","RATE_DAILY","PERIOD"]
[424771270,1781146247000,-400.0,0.00030235,30]
[424771272,1781146247000,-400.0,0.00030235,30]
[424771273,1781146247000,-400.0,0.00030235,30]
[424771271,1781146247000,-400.0,0.00030235,30]
[424771274,1781146247000,-331.0,0.00030235,30]
[424771276,1781146247000,-959.0,0.00030235,30]
[424771277,1781146247000,-279.0,0.00030235,30]
[424771275,1781146247000,-774.0,0.00030235,30]
[424771280,1781146247000,-500.0,0.00030245,2]
[424771281,1781146247000,-154.60662369,0.00030246,7]
[424771278,1781146247000,-442.0,0.00030235,30]
[424771279,1781146247000,-397.7,0.00030239,2]
[424771283,1781146247000,-500.0,0.00030251,120]
[424771294,1781146247000,-173.6660234,0.00030252,7]
[424771293,1781146247000,-651.26527395,0.00030252,7]
[424771282,1781146247000,-647.55660089,0.00030246,7]
[424771284,1781146247000,-500.0,0.00030251,120]
[424771285,1781146247000,-164.01603831,0.00030252,7]
[424771289,1781146247000,-706.14269473,0.00030252,7]
[424771286,1781146247000,-366.5847408,0.00030252,7]
[424771288,1781146247000,-395.80280849,0.00030252,7]
[424771320,1781146247000,-708.33033719,0.00030252,7]
[424771342,1781146247000,-500.69,0.000307,7]
[424771322,1781146247000,-186.64768682,0.00030252,7]
[424771357,1781146247000,-1047.59538933,0.00030829,7]
[424771366,1781146247000,-150.0,0.00030841,2]
[424771356,1781146247000,-750.52796695,0.00030829,7]
[424771358,1781146247000,-813.02020072,0.00030829,7]
[424771359,1781146247000,-781.42831535,0.00030829,2]
[424771361,1781146247000,-794.06092064,0.00030829,7]
[424771360,1781146247000,-780.70804234,0.00030829,7]
[424771362,1781146247000,-828.78072191,0.00030829,7]
[424771365,1781146247000,-885.41292148,0.00030829,7]
[424771363,1781146247000,-926.00695352,0.00030829,7]
[424771364,1781146247000,-787.78335233,0.00030829,7]
[424771367,1781146247000,-286.26076,0.0003092,13]
[424771373,1781146247000,-447.51,0.00031096,5]
[424771369,1781146247000,-250.0,0.00030959,18]
[424771368,1781146247000,-286.26075,0.0003092,13]
[424771371,1781146247000,-2325.0,0.00031,15]
[424771377,1781146247000,-150.0,0.00031146,7]
[424771330,1781146247000,-10590.30588343,0.00030296,2]
[424771372,1781146247000,-3325.01473927,0.00031071,2]
[424771374,1781146247000,-500.70405416,0.00031113,3]
[424771376,1781146247000,-10382.24383629,0.00031133,2]
[424771375,1781146247000,-232.0,0.00031119,3]
[424771378,1781146247000,-654.0,0.00031152,14]
[424771380,1781146247000,-1000.0,0.000312,7]
[424771381,1781146247000,-1027.47617119,0.000312,2]
[424771379,1781146247000,-500.69,0.000312,7]
[424771382,1781146247000,-1085.45596101,0.000312,2]
[424771351,1781146247000,-150.0,0.000308,7]
[424771349,1781146247000,-53895.50646287,0.00030786,2]
[424771370,1781146247000,-150.0,0.00030973,7]
[424771348,1781146247000,-544.15,0.00030785,7]
[424771350,1781146247000,-155.79619,0.00030786,7]
[424771324,1781146247000,-626.35501049,0.00030252,7]
[424771323,1781146247000,-411.61137125,0.00030252,7]
[424771325,1781146247000,-620.60859396,0.00030252,7]
[424771327,1781146247000,-300.59515348,0.00030252,7]
[424771329,1781146247000,-150.0,0.00030281,7]
[424771326,1781146247000,-194.95911163,0.00030252,7]
[424771332,1781146247000,-150.0,0.00030411,30]
[424771331,1781146247000,-221.82909047,0.00030308,2]
[424771336,1781146247000,-150.0,0.00030627,7]
[424771333,1781146247000,-3183.08,0.00030453,33]
[424771335,1781146247000,-654.0,0.00030525,13]
[424771341,1781146247000,-150.0,0.00030685,30]
[424771328,1781146247000,-576.70120278,0.00030252,7]
[424771339,1781146247000,-150.0,0.00030685,7]
[424771354,1781146247000,-1057.28319356,0.00030829,7]
[424771337,1781146247000,-191.86205246,0.00030684,2]
[424771355,1781146247000,-814.08159244,0.00030829,7]
[424771346,1781146247000,-232.0,0.00030735,2]
[424771347,1781146247000,-7156.57,0.00030743,120]
[424771345,1781146247000,-942.52655985,0.00030732,2]
[424771343,1781146247000,-250.0,0.00030724,7]
[424771352,1781146247000,-809.44575112,0.00030823,7]
[424771353,1781146247000,-882.67836841,0.00030829,7]
[424771340,1781146247000,-150.0,0.00030685,7]
[424771338,1781146247000,-150.0,0.00030685,7]
[424771334,1781146247000,-150.0,0.00030454,7]
[424771344,1781146247000,-250.0,0.00030724,7]
[424771415,1781146248000,-1000.0,0.00031233,2]
[424771411,1781146248000,-1000.0,0.00031233,2]
[424771405,1781146248000,-150.0,0.00031233,2]
[424771407,1781146248000,-500.0,0.00031233,60]
[424771404,1781146248000,-544.15,0.00031232,7]
[424771406,1781146248000,-150.00000002,0.00031233,2]
[424771412,1781146248000,-1000.0,0.00031233,2]
[424771410,1781146248000,-1000.0,0.00031233,2]
[424771416,1781146248000,-1000.0,0.00031233,2]
[424771408,1781146248000,-500.0,0.00031233,60]
[424771409,1781146248000,-1000.0,0.00031233,2]
[424771413,1781146248000,-1000.0,0.00031233,2]
[424771418,1781146248000,-200.0,0.00031233,2]
[424771419,1781146248000,-232.7015644,0.00031233,2]
[424771417,1781146248000,-1004.5265716,0.00031233,2]
[424771420,1781146248000,-151.0,0.00031233,7]
[424771399,1781146248000,-500.0,0.00031232,120]
[424771414,1781146248000,-1000.0,0.00031233,2]
[424771401,1781146248000,-544.15,0.00031232,7]
[424771388,1781146248000,-262.0,0.00031209,30]
[424771396,1781146248000,-151.0,0.0003123,7]
[424771425,1781146248000,-151.0,0.00031233,7]
[424771390,1781146248000,-1462.0,0.00031209,30]
[424771383,1781146248000,-2052.3712962,0.000312,2]
[424771385,1781146248000,-313.0,0.00031201,30]
[424771384,1781146248000,-318.0,0.00031201,30]
[424771389,1781146248000,-996.0,0.00031209,30]
[424771386,1781146248000,-247.0,0.00031203,30]
[424771387,1781146248000,-859.14,0.00031207,30]
[424771391,1781146248000,-319.0,0.00031209,30]
[424771394,1781146248000,-305.0,0.00031209,30]
[424771393,1781146248000,-886.0,0.00031209,30]
[424771403,1781146248000,-544.15,0.00031232,7]
[424771395,1781146248000,-270.0,0.00031209,30]
[424771392,1781146248000,-186.0,0.00031209,30]
[424771402,1781146248000,-544.15,0.00031232,7]
[424771400,1781146248000,-544.15,0.00031232,7]
[424771398,1781146248000,-500.0,0.00031232,2]
[424771397,1781146248000,-500.0,0.00031232,120]
[424771426,1781146248000,-151.0,0.00031233,7]
[424771422,1781146248000,-200.0,0.00031233,2]
[424771423,1781146248000,-151.0,0.00031233,7]
[424771445,1781146248000,-286.26075,0.00031233,17]
[424771447,1781146248000,-151.0,0.00031233,7]
[424771450,1781146248000,-761.628062,0.00031233,7]
[424771460,1781146248000,-697.854733,0.00031233,7]
[424771449,1781146248000,-761.628062,0.00031233,7]
[424771454,1781146248000,-346.1279258,0.00031233,14]
[424771451,1781146248000,-761.628062,0.00031233,7]
[424771452,1781146248000,-761.628062,0.00031233,7]
[424771455,1781146248000,-151.0,0.00031233,7]
[424771453,1781146248000,-151.0,0.00031233,7]
[424771459,1781146248000,-697.854733,0.00031233,7]
[424771457,1781146248000,-175.987358,0.00031233,7]
[424771456,1781146248000,-151.0,0.00031233,7]
[424771461,1781146248000,-697.854733,0.00031233,7]
[424771464,1781146248000,-598488.51947801,0.00031233,2]
[424771463,1781146248000,-1411.814648,0.00031233,2]
[424771421,1781146248000,-151.0,0.00031233,7]
[424771440,1781146248000,-151.0,0.00031233,7]
[424771442,1781146248000,-151.0,0.00031233,7]
[424771458,1781146248000,-151.103,0.00031233,120]
[424771448,1781146248000,-187.586681,0.00031233,7]
[424771424,1781146248000,-151.0,0.00031233,7]
[424771428,1781146248000,-151.0,0.00031233,7]
[424771436,1781146248000,-1000.0,0.00031233,2]
[424771437,1781146248000,-1000.0,0.00031233,2]
[424771427,1781146248000,-151.0,0.00031233,7]
[424771462,1781146248000,-697.854733,0.00031233,7]
[424771430,1781146248000,-151.0,0.00031233,7]
[424771429,1781146248000,-151.0,0.00031233,7]
[424771431,1781146248000,-151.0,0.00031233,7]
[424771434,1781146248000,-1000.0,0.00031233,2]
[424771432,1781146248000,-151.0,0.00031233,7]
[424771433,1781146248000,-151.0,0.00031233,7]
[424771438,1781146248000,-155.293853,0.00031233,7]
[424771439,1781146248000,-151.0,0.00031233,7]
[424771446,1781146248000,-286.26076,0.00031233,17]
[424771443,1781146248000,-286.26076,0.00031233,17]
[424771441,1781146248000,-151.0,0.00031233,7]
[424771435,1781146248000,-1000.0,0.00031233,2]
[424771444,1781146248000,-286.26075,0.00031233,17]
[424771468,1781146250000,-733.3777153,0.00031233,2]
[424771465,1781146250000,-539.35548126,0.00031233,2]
[424771467,1781146250000,-9617.69284702,0.00031233,2]
[424771466,1781146250000,-2877.10776756,0.00031233,2]
[424771469,1781146250000,-275786.48625615,0.00031233,2]
[424771472,1781146250000,-1009.0,0.00023311,7]
[424771471,1781146250000,-1162.65962084,0.00031233,2]
[424771473,1781146250000,-884.80373514,0.00031233,2]
[424771474,1781146250000,-141845.0062819,0.00031233,2]
[424771470,1781146250000,-1656.36175018,0.00031233,2]
[424771478,1781146251000,-1687.8436644,0.00020825,2]
[424771479,1781146251000,-1955.1563356,0.00020825,2]
[424771480,1781146251000,-1546.70083582,0.00031233,2]
[424771477,1781146251000,-172.40980341,0.00019337,3]
[424771476,1781146251000,-194.81960682,0.00018965,3]
[424771475,1781146251000,-217.22941025,0.00018594,3]
[424771500,1781147199000,-166.66,0.00010959,2]
[424771502,1781147199000,-133.86821921,0.00011214,2]
[424771501,1781147199000,-166.66,0.00011086,2]
[424771512,1781147431000,-12799.03531703,0.00011458,2]
[424771506,1781147431000,-32.79178079,0.00011214,2]
[424771508,1781147431000,-117.87620323,0.00011278,2]
[424771507,1781147431000,-403.73549796,0.00011246,2]
[424771509,1781147431000,-132.12379677,0.00011278,2]
[424771511,1781147431000,-399.35553437,0.00011401,2]
[424771516,1781147431000,-150.0,0.0001149,2]
[424771515,1781147431000,-494.53712079,0.00011479,2]
[424771510,1781147431000,-166.66,0.00011342,2]
[424771514,1781147431000,-166.66,0.00011469,2]
[424771525,1781147431000,-2781.83757167,0.00011544,2]
[424771513,1781147431000,-658.30467643,0.00011458,2]
[424771523,1781147431000,-8604.13382167,0.00011544,2]
[424771524,1781147431000,-1395.85617833,0.00011544,2]
[424771522,1781147431000,-9999.99,0.00011544,2]
[424771521,1781147431000,-70071.4114,0.00011544,2]
[424771518,1781147431000,-250.0,0.00011492,2]
[424771520,1781147431000,-728.96288957,0.00011543,2]
[424771517,1781147431000,-2000.0,0.00011492,2]
[424771519,1781147431000,-440.65067438,0.0001154,2]
[424771547,1781147437000,-720.89495574,0.00011544,2]
[424771546,1781147437000,-3877.53112503,0.00011544,2]
[424771545,1781147437000,-83.24242833,0.00011544,2]
[424771590,1781147438000,-500.0,0.00011735,2]
[424771589,1781147438000,-500.0,0.00011735,2]
[424771588,1781147438000,-500.0,0.00011735,2]
[424771587,1781147438000,-500.0,0.00011735,2]
[424771583,1781147438000,-479.71069045,0.00011735,2]
[424771605,1781147438000,-500.0,0.00011735,2]
[424771585,1781147438000,-241.50234938,0.00011735,2]
[424771584,1781147438000,-500.0,0.00011735,2]
[424771582,1781147438000,-289.47695705,0.00011735,2]
[424771591,1781147438000,-500.0,0.00011735,2]
[424771586,1781147438000,-500.0,0.00011735,2]
[424771593,1781147438000,-500.0,0.00011735,2]
[424771596,1781147438000,-456.5029529,0.00011735,2]
[424771595,1781147438000,-500.0,0.00011735,2]
[424771601,1781147438000,-500.0,0.00011735,2]
[424771599,1781147438000,-362.49392878,0.00011735,2]
[424771597,1781147438000,-171.40899099,0.00011735,2]
[424771581,1781147438000,-298.46639798,0.00011735,2]
[424771600,1781147438000,-500.0,0.00011735,2]
[424771598,1781147438000,-274.20562662,0.00011735,2]
[424771602,1781147438000,-500.0,0.00011735,2]
[424771604,1781147438000,-500.0,0.00011735,2]
[424771603,1781147438000,-500.0,0.00011735,2]
[424771607,1781147438000,-500.0,0.00011735,2]
[424771594,1781147438000,-617.64565727,0.00011735,2]
[424771579,1781147438000,-500.0,0.00011735,2]
[424771568,1781147438000,-900.0,0.000117,4]
[424771573,1781147438000,-500.0,0.00011735,2]
[424771548,1781147438000,-4169.41391923,0.00011544,2]
[424771552,1781147438000,-150.0,0.00011549,2]
[424771553,1781147438000,-1500000.0,0.0001155,2]
[424771549,1781147438000,-150.99,0.00011544,2]
[424771550,1781147438000,-299.99,0.00011544,2]
[424771551,1781147438000,-300.0,0.00011549,2]
[424771555,1781147438000,-166.66,0.00011597,2]
[424771556,1781147438000,-2500.0,0.00011636,2]
[424771554,1781147438000,-958.75,0.00011558,2]
[424771557,1781147438000,-6315.6351,0.00011636,2]
[424771562,1781147438000,-9743.06,0.00011649,2]
[424771577,1781147438000,-500.0,0.00011735,2]
[424771561,1781147438000,-999.99,0.00011649,2]
[424771564,1781147438000,-172.3,0.00011656,2]
[424771558,1781147438000,-161.056,0.00011636,2]
[424771560,1781147438000,-164.45318784,0.00011648,2]
[424771565,1781147438000,-172.3,0.00011656,2]
[424771567,1781147438000,-2500.0,0.000117,4]
[424771566,1781147438000,-200.26,0.00011698,2]
[424771569,1781147438000,-500.0,0.00011735,2]
[424771572,1781147438000,-500.0,0.00011735,2]
[424771570,1781147438000,-500.0,0.00011735,2]
[424771571,1781147438000,-500.0,0.00011735,2]
[424771575,1781147438000,-500.0,0.00011735,2]
[424771563,1781147438000,-2537.79002093,0.00011656,2]
[424771608,1781147438000,-2000.0,0.00011736,2]
[424771559,1781147438000,-2395.808,0.00011636,2]
[424771609,1781147438000,-215.95576085,0.00011763,2]
[424771640,1781147438000,-12799.03531694,0.00012988,2]
[424771638,1781147438000,-482.2377064,0.00012952,2]
[424771643,1781147438000,-2537.79002091,0.00013046,2]
[424771646,1781147438000,-482.2377064,0.00013093,2]
[424771644,1781147438000,-482.2377064,0.00013061,2]
[424771641,1781147438000,-482.2377064,0.00012992,2]
[424771645,1781147438000,-312.5039285,0.00013074,2]
[424771642,1781147438000,-482.2377064,0.00013028,2]
[424771648,1781147438000,-482.2377064,0.00013151,2]
[424771662,1781147438000,-482.2377064,0.00013383,2]
[424771647,1781147438000,-482.2377064,0.00013122,2]
[424771649,1781147438000,-482.2377064,0.00013178,2]
[424771651,1781147438000,-482.2377064,0.00013204,2]
[424771650,1781147438000,-658.30467643,0.00013179,2]
[424771653,1781147438000,-482.2377064,0.00013253,2]
[424771657,1781147438000,-482.2377064,0.00013299,2]
[424771652,1781147438000,-482.2377064,0.00013229,2]
[424771656,1781147438000,-312.5039285,0.00013292,2]
[424771658,1781147438000,-482.2377064,0.00013321,2]
[424771654,1781147438000,-164.45318782,0.00013274,2]
[424771655,1781147438000,-482.2377064,0.00013276,2]
[424771659,1781147438000,-482.2377064,0.00013342,2]
[424771661,1781147438000,-12799.03531694,0.0001337,2]
[424771660,1781147438000,-482.2377064,0.00013363,2]
[424771610,1781147438000,-5000.0,0.000118,4]
[424771639,1781147438000,-388.38,0.00012983,2]
[424771637,1781147438000,-482.2377064,0.00012909,2]
[424771663,1781147438000,-482.2377064,0.00013403,2]
[424771634,1781147438000,-164.45318782,0.00012732,2]
[424771606,1781147438000,-500.0,0.00011735,2]
[424771611,1781147438000,-1800.0,0.000118,4]
[424771612,1781147438000,-500.0,0.00011835,2]
[424771613,1781147438000,-12799.03531694,0.0001184,2]
[424771615,1781147438000,-7500.0,0.000119,4]
[424771614,1781147438000,-958.75,0.00011847,2]
[424771616,1781147438000,-2700.0,0.000119,4]
[424771635,1781147438000,-482.2377064,0.00012801,2]
[424771622,1781147438000,-500.0,0.00012335,2]
[424771620,1781147438000,-12799.03531694,0.00012223,2]
[424771619,1781147438000,-164.45318782,0.0001219,2]
[424771617,1781147438000,-2537.79002091,0.00012119,2]
[424771621,1781147438000,-250.0,0.00012335,2]
[424771623,1781147438000,-500.0,0.00012335,2]
[424771618,1781147438000,-958.75,0.00012136,2]
[424771632,1781147438000,-958.75,0.00012713,2]
[424771633,1781147438000,-482.2377064,0.00012725,2]
[424771631,1781147438000,-284.0,0.00012684,2]
[424771630,1781147438000,-255.0,0.00012612,2]
[424771636,1781147438000,-482.2377064,0.0001286,2]
[424771629,1781147438000,-12799.03531694,0.00012605,2]
[424771627,1781147438000,-312.5039285,0.00012574,2]
[424771625,1781147438000,-482.2377064,0.00012542,2]
[424771626,1781147438000,-312.5039285,0.00012548,2]
[424771624,1781147438000,-958.75,0.00012425,2]
[424771628,1781147438000,-2537.79002091,0.00012583,2]
[424771697,1781147439000,-500.0,0.00013698,2]
[424771700,1781147439000,-500.0,0.00013698,2]
[424771699,1781147439000,-500.0,0.00013698,2]
[424771703,1781147439000,-500.0,0.00013698,2]
[424771696,1781147439000,-500.0,0.00013698,2]
[424771698,1781147439000,-500.0,0.00013698,2]
[424771695,1781147439000,-500.0,0.00013698,2]
[424771694,1781147439000,-500.0,0.00013698,2]
[424771693,1781147439000,-500.0,0.00013698,2]
[424771702,1781147439000,-500.0,0.00013698,2]
[424771701,1781147439000,-500.0,0.00013698,2]
[424771717,1781147439000,-500.0,0.00013698,2]
[424771705,1781147439000,-500.0,0.00013698,2]
[424771707,1781147439000,-500.0,0.00013698,2]
[424771706,1781147439000,-500.0,0.00013698,2]
[424771708,1781147439000,-500.0,0.00013698,2]
[424771712,1781147439000,-500.0,0.00013698,2]
[424771715,1781147439000,-500.0,0.00013698,2]
[424771714,1781147439000,-500.0,0.00013698,2]
[424771709,1781147439000,-500.0,0.00013698,2]
[424771713,1781147439000,-500.0,0.00013698,2]
[424771710,1781147439000,-500.0,0.00013698,2]
[424771711,1781147439000,-500.0,0.00013698,2]
[424771692,1781147439000,-500.0,0.00013698,2]
[424771704,1781147439000,-500.0,0.00013698,2]
[424771691,1781147439000,-500.0,0.00013698,2]
[424771676,1781147439000,-482.2377064,0.00013513,2]
[424771687,1781147439000,-500.0,0.00013698,2]
[424771664,1781147439000,-482.2377064,0.00013422,2]
[424771667,1781147439000,-482.2377064,0.0001346,2]
[424771665,1781147439000,-482.2377064,0.00013441,2]
[424771668,1781147439000,-482.2377064,0.00013478,2]
[424771666,1781147439000,-312.5039285,0.00013459,2]
[424771669,1781147439000,-150.0,0.00013488,2]
[424771672,1781147439000,-150.0,0.00013488,2]
[424771671,1781147439000,-150.0,0.00013488,2]
[424771670,1781147439000,-150.0,0.00013488,2]
[424771673,1781147439000,-482.2377064,0.00013496,2]
[424771674,1781147439000,-500.0,0.00013506,2]
[424771689,1781147439000,-500.0,0.00013698,2]
[424771677,1781147439000,-482.2377064,0.00013531,2]
[424771678,1781147439000,-482.2377064,0.00013548,2]
[424771679,1781147439000,-482.2377064,0.00013564,2]
[424771675,1781147439000,-2537.79002091,0.0001351,2]
[424771680,1781147439000,-150.0,0.00013567,2]
[424771682,1781147439000,-150.0,0.00013645,2]
[424771684,1781147439000,-500.0,0.00013698,2]
[424771683,1781147439000,-500.0,0.00013698,2]
[424771686,1781147439000,-500.0,0.00013698,2]
[424771685,1781147439000,-500.0,0.00013698,2]
[424771688,1781147439000,-500.0,0.00013698,2]
[424771690,1781147439000,-500.0,0.00013698,2]
[424771681,1781147439000,-312.5039285,0.000136,2]
[424771718,1781147439000,-500.0,0.00013698,2]
[424771721,1781147439000,-500.0,0.00013698,2]
[424771719,1781147439000,-500.0,0.00013698,2]
[424771750,1781147439000,-549.51495302,0.00013698,2]
[424771752,1781147439000,-1822.7,0.00013698,2]
[424771753,1781147439000,-1822.7,0.00013698,2]
[424771756,1781147439000,-1822.7,0.00013698,2]
[424771758,1781147439000,-668.16,0.00013698,2]
[424771760,1781147439000,-668.16,0.00013698,2]
[424771755,1781147439000,-1822.7,0.00013698,2]
[424771757,1781147439000,-668.16,0.00013698,2]
[424771759,1781147439000,-668.16,0.00013698,2]
[424771754,1781147439000,-1822.7,0.00013698,2]
[424771763,1781147439000,-500.0,0.00013698,2]
[424771751,1781147439000,-1822.7,0.00013698,2]
[424771761,1781147439000,-668.16,0.00013698,2]
[424771767,1781147439000,-500.0,0.00013698,2]
[424771764,1781147439000,-500.0,0.00013698,2]
[424771768,1781147439000,-500.0,0.00013698,2]
[424771765,1781147439000,-500.0,0.00013698,2]
[424771766,1781147439000,-500.0,0.00013698,2]
[424771770,1781147439000,-500.0,0.00013698,2]
[424771771,1781147439000,-500.0,0.00013698,2]
[424771769,1781147439000,-500.0,0.00013698,2]
[424771772,1781147439000,-500.0,0.00013698,2]
[424771716,1781147439000,-500.0,0.00013698,2]
[424771773,1781147439000,-500.0,0.00013698,2]
[424771762,1781147439000,-668.16,0.00013698,2]
[424771747,1781147439000,-500.0,0.00013698,2]
[424771774,1781147439000,-500.0,0.00013698,2]
[424771749,1781147439000,-500.0,0.00013698,2]
[424771744,1781147439000,-500.0,0.00013698,2]
[424771720,1781147439000,-500.0,0.00013698,2]
[424771727,1781147439000,-500.0,0.00013698,2]
[424771725,1781147439000,-500.0,0.00013698,2]
[424771723,1781147439000,-500.0,0.00013698,2]
[424771726,1781147439000,-500.0,0.00013698,2]
[424771730,1781147439000,-500.0,0.00013698,2]
[424771728,1781147439000,-500.0,0.00013698,2]
[424771729,1781147439000,-500.0,0.00013698,2]
[424771731,1781147439000,-500.0,0.00013698,2]
[424771733,1781147439000,-669.06,0.00013698,2]
[424771738,1781147439000,-500.0,0.00013698,2]
[424771722,1781147439000,-500.0,0.00013698,2]
[424771735,1781147439000,-669.06,0.00013698,2]
[424771736,1781147439000,-669.06,0.00013698,2]
[424771743,1781147439000,-500.0,0.00013698,2]
[424771748,1781147439000,-500.0,0.00013698,2]
[424771745,1781147439000,-500.0,0.00013698,2]
[424771742,1781147439000,-500.0,0.00013698,2]
[424771746,1781147439000,-500.0,0.00013698,2]
[424771739,1781147439000,-500.0,0.00013698,2]
[424771740,1781147439000,-500.0,0.00013698,2]
[424771732,1781147439000,-669.06,0.00013698,2]
[424771734,1781147439000,-669.06,0.00013698,2]
[424771737,1781147439000,-669.06,0.00013698,2]
[424771741,1781147439000,-500.0,0.00013698,2]
[424771810,1781147440000,-500.0,0.00013699,2]
[424771803,1781147440000,-422.59252689,0.00013699,2]
[424771804,1781147440000,-500.0,0.00013699,2]
[424771805,1781147440000,-500.0,0.00013699,2]
[424771806,1781147440000,-500.0,0.00013699,2]
[424771808,1781147440000,-500.0,0.00013699,2]
[424771809,1781147440000,-500.0,0.00013699,2]
[424771812,1781147440000,-500.0,0.00013699,2]
[424771807,1781147440000,-500.0,0.00013699,2]
[424771802,1781147440000,-500.0,0.00013699,2]
[424771817,1781147440000,-156.14534876,0.00013699,2]
[424771813,1781147440000,-156.14534876,0.00013699,2]
[424771811,1781147440000,-500.0,0.00013699,2]
[424771816,1781147440000,-500.0,0.00013699,2]
[424771815,1781147440000,-500.0,0.00013699,2]
[424771824,1781147440000,-500.0,0.00013699,2]
[424771823,1781147440000,-156.14534876,0.00013699,2]
[424771819,1781147440000,-500.0,0.00013699,2]
[424771820,1781147440000,-156.14534876,0.00013699,2]
[424771822,1781147440000,-500.0,0.00013699,2]
[424771821,1781147440000,-500.0,0.00013699,2]
[424771801,1781147440000,-500.0,0.00013699,2]
[424771814,1781147440000,-500.0,0.00013699,2]
[424771798,1781147440000,-500.0,0.00013699,2]
[424771787,1781147440000,-500.0,0.00013699,2]
[424771800,1781147440000,-500.0,0.00013699,2]
[424771818,1781147440000,-500.0,0.00013699,2]
[424771775,1781147440000,-500.0,0.00013698,2]
[424771777,1781147440000,-200.0,0.00013699,2]
[424771776,1781147440000,-500.0,0.00013698,2]
[424771782,1781147440000,-500.0,0.00013699,2]
[424771778,1781147440000,-222.15,0.00013699,2]
[424771780,1781147440000,-500.0,0.00013699,2]
[424771781,1781147440000,-500.0,0.00013699,2]
[424771779,1781147440000,-185.12,0.00013699,2]
[424771784,1781147440000,-500.0,0.00013699,2]
[424771783,1781147440000,-500.0,0.00013699,2]
[424771786,1781147440000,-500.0,0.00013699,2]
[424771785,1781147440000,-500.0,0.00013699,2]
[424771788,1781147440000,-500.0,0.00013699,2]
[424771789,1781147440000,-500.0,0.00013699,2]
[424771790,1781147440000,-500.0,0.00013699,2]
[424771791,1781147440000,-500.0,0.00013699,2]
[424771792,1781147440000,-500.0,0.00013699,2]
[424771794,1781147440000,-500.0,0.00013699,2]
[424771795,1781147440000,-500.0,0.00013699,2]
[424771793,1781147440000,-500.0,0.00013699,2]
[424771796,1781147440000,-500.0,0.00013699,2]
[424771797,1781147440000,-500.0,0.00013699,2]
[424771799,1781147440000,-500.0,0.00013699,2]
[424771825,1781147440000,-500.0,0.00013699,2]
[424771857,1781147440000,-500.0,0.00013699,2]
[424771827,1781147440000,-500.0,0.00013699,2]
[424771854,1781147440000,-500.0,0.00013699,2]
[424771856,1781147440000,-500.0,0.00013699,2]
[424771878,1781147440000,-5445.1472978,0.00013818,2]
[424771858,1781147440000,-500.0,0.00013699,2]
[424771865,1781147440000,-500.0,0.00013699,2]
[424771860,1781147440000,-500.0,0.00013699,2]
[424771861,1781147440000,-500.0,0.00013699,2]
[424771862,1781147440000,-500.0,0.00013699,2]
[424771864,1781147440000,-500.0,0.00013699,2]
[424771863,1781147440000,-500.0,0.00013699,2]
[424771866,1781147440000,-150.0,0.00013724,2]
[424771868,1781147440000,-150.0,0.00013725,2]
[424771867,1781147440000,-312.5039285,0.00013724,2]
[424771873,1781147440000,-312.5039285,0.00013752,2]
[424771876,1781147440000,-150.0,0.00013803,2]
[424771870,1781147440000,-150.0,0.00013725,2]
[424771875,1781147440000,-433.0,0.00013767,2]
[424771869,1781147440000,-150.0,0.00013725,2]
[424771871,1781147440000,-150.0,0.00013725,2]